fUST/lending_fUST_20241027
["ID","MTS","AMOUNT","RATE_DAILY","PERIOD"]
[340865776,1729958417318,160.966972,0.00013973,2]
[340865784,1729958869576,400.0,0.00023,120]
[340865972,1729959038791,-300.0,0.00026599,2]
[340865974,1729959038803,-300.0,0.00026599,2]
[340865977,1729959038814,-152.68,0.000266,31]
[340865979,1729959038826,-152.68,0.000266,31]
[340865981,1729959038836,-152.68,0.000266,31]
[340865983,1729959038847,-152.68,0.000266,31]
[340865985,1729959038857,-152.68,0.000266,31]
[340865987,1729959038867,-152.68,0.000266,31]
[340865989,1729959038878,-152.68,0.000266,31]
[340865991,1729959038888,-152.68,0.000266,31]
[340865993,1729959038897,-152.68,0.000287,31]
[340865995,1729959038907,-152.68,0.000287,31]
[340865997,1729959038916,-152.68,0.000287,31]
[340865999,1729959038926,-152.68,0.000287,31]
[340866001,1729959038937,-152.68,0.000287,31]
[340866004,1729959038947,-152.68,0.000287,31]
[340866006,1729959038957,-152.68,0.000287,31]
[340866008,1729959038966,-152.68,0.000287,31]
[340866009,1729959038976,-152.68,0.000287,31]
[340866011,1729959038985,-152.68,0.000287,31]
[340866013,1729959038994,-152.68,0.000287,31]
[340866015,1729959039004,-152.68,0.000287,31]
[340866017,1729959039014,-152.68,0.000287,31]
[340866019,1729959039023,-152.68,0.000287,31]
[340866021,1729959039032,-152.68,0.000287,31]
[340866023,1729959039042,-152.68,0.000287,31]
[340866025,1729959039051,-420.0,0.00029259,2]
[340866027,1729959039060,-157.958133,0.00029511,2]
[340866029,1729959039069,-904.5106464,0.00029646,2]
[340866031,1729959039082,-1169.62442848,0.00029646,2]
[340866034,1729959039094,-1023.300666,0.00029646,2]
[340866036,1729959039110,-1965.74709787,0.00029646,2]
[340866198,1729959040689,-711.659997,0.00029646,2]
[340866506,1729959044606,-1217.87277105,0.00029646,2]
[340866508,1729959044616,-2755.5379479,0.0002987,2]
[340866510,1729959044626,-1000.0,0.0003,2]
[340866512,1729959044636,-523.49063342,0.0003,20]
[340866514,1729959044648,-1265.32172966,0.0003,20]
[340866516,1729959044658,-160.0,0.0003,2]
[340866518,1729959044667,-157.958133,0.00030196,2]
[340866520,1729959044677,-157.894737,0.00030223,2]
[340866522,1729959044686,-157.894737,0.00030398,2]
[340866524,1729959044696,-273.16671935,0.0003042,2]
[340866526,1729959044706,-157.894737,0.00030573,2]
[340866528,1729959044717,-152.68,0.000307,31]
[340866530,1729959044727,-152.68,0.000307,31]
[340866532,1729959044737,-152.68,0.000307,31]
[340866534,1729959044748,-152.68,0.000307,31]
[340866536,1729959044758,-152.68,0.000307,31]
[340866538,1729959044768,-152.68,0.000307,31]
[340866540,1729959044778,-152.68,0.000307,31]
[340866542,1729959044788,-70.76917156,0.000307,31]
[340866605,1729959244971,160.966972,0.00013973,2]
[340866608,1729959646599,1649.0,0.00013,2]
[340866666,1729960153105,-463.71144525,0.000175,2]
[340866684,1729960232655,-5456.78094083,0.000175,2]
[340866685,1729960232665,-307.74787112,0.000176,2]
[340866686,1729960232674,-189.944552,0.00026228,2]
[340866687,1729960232685,-300.0,0.00026599,2]
[340866688,1729960232697,-300.0,0.00026599,2]
[340866689,1729960232712,-189.944552,0.00027598,2]
[340866690,1729960232724,-634.31127819,0.00027974,2]
[340866691,1729960232735,-6741.33111285,0.00027974,2]
[340866721,1729960240735,-154.96,0.000266,31]
[340866722,1729960240745,-154.96,0.000266,31]
[340866723,1729960240755,-154.96,0.000266,31]
[340866724,1729960240765,-154.96,0.000266,31]
[340866725,1729960240774,-18138.66888715,0.00027974,2]
[340866726,1729960240783,-250.0,0.00027992,2]
[340866727,1729960240795,-2017.2902539,0.00028007,2]
[340866728,1729960240805,-250.0,0.00028252,2]
[340866729,1729960240815,-250.0,0.0002833,2]
[340866730,1729960240824,-250.0,0.00028407,2]
[340866731,1729960240834,-250.0,0.00028485,2]
[340866732,1729960240844,-250.0,0.00028562,2]
[340866733,1729960240854,-250.0,0.0002864,2]
[340866734,1729960240864,-154.96,0.000287,31]
[340866735,1729960240874,-154.96,0.000287,31]
[340866736,1729960240884,-154.96,0.000287,31]
[340866737,1729960240894,-154.96,0.000287,31]
[340866738,1729960240904,-154.96,0.000287,31]
[340866739,1729960240914,-154.96,0.000287,31]
[340866740,1729960240923,-154.96,0.000287,31]
[340866741,1729960240933,-154.96,0.000287,31]
[340866742,1729960240943,-250.0,0.00028717,2]
[340866743,1729960240952,-300.0,0.00028768,2]
[340866744,1729960240962,-250.0,0.00028795,2]
[340866745,1729960240972,-250.0,0.00028872,2]
[340866746,1729960240981,-250.0,0.0002895,2]
[340866747,1729960240991,-250.0,0.00029027,2]
[340866748,1729960241001,-250.0,0.00029105,2]
[340866749,1729960241011,-250.0,0.00029182,2]
[340866750,1729960241020,-300.0,0.00029259,2]
[340866751,1729960241030,-250.0,0.0002926,2]
[340866752,1729960241040,-250.0,0.00029337,2]
[340866753,1729960241049,-250.0,0.00029415,2]
[340866754,1729960241059,-250.0,0.00029492,2]
[340866755,1729960241069,-250.0,0.0002957,2]
[340866756,1729960241079,-250.0,0.00029647,2]
[340866757,1729960241088,-250.0,0.00029725,2]
[340866758,1729960241098,-202.90624669,0.0003,2]
[340866759,1729960241108,-268.0,0.0003,2]
[340866760,1729960241117,-1212.33943322,0.0003,3]
[340866761,1729960241326,-156.44,0.0003032,2]
[340866762,1729960241336,-6786.53938388,0.0003036,2]
[340866763,1729960241346,-154.96,0.000307,31]
[340866764,1729960241356,-154.96,0.000307,31]
[340866765,1729960241365,-154.96,0.000307,31]
[340866766,1729960241375,-154.96,0.000307,31]
[340866767,1729960241384,-154.96,0.000307,31]
[340866768,1729960241393,-154.96,0.000307,31]
[340866769,1729960241403,-154.96,0.000307,31]
[340866770,1729960241412,-154.96,0.000307,31]
[340866771,1729960241422,-665.3808616,0.000307,30]
[340866772,1729960241431,-183.50754533,0.00030837,2]
[340866773,1729960241440,-216.133,0.00031,2]
[340866774,1729960241450,-175.474865,0.00031514,2]
[340866775,1729960241459,-1212.33943322,0.000318,3]
[340866776,1729960241469,-156.44,0.00032367,2]
[340866777,1729960241479,-250.337,0.00032702,2]
[340866778,1729960241487,-154.96,0.000328,31]
[340866779,1729960241497,-154.96,0.000328,31]
[340866780,1729960241506,-154.96,0.000328,31]
[340866781,1729960241515,-154.96,0.000328,31]
[340866782,1729960241525,-154.96,0.000328,31]
[340866783,1729960241535,-154.96,0.000328,31]
[340866784,1729960241545,-154.96,0.000328,31]
[340866785,1729960241555,-154.96,0.000328,31]
[340866786,1729960241564,-401.0945666,0.0003287,120]
[340866787,1729960241574,-834.162135,0.00032877,120]
[340866788,1729960241584,-268.0,0.00033,2]
[340866789,1729960241594,-268.0,0.00033,2]
[340866790,1729960241603,-216.122,0.0003311,120]
[340866791,1729960241613,-1500.0,0.00033154,2]
[340866792,1729960241622,-1287.78533,0.00033155,2]
[340866793,1729960241632,-151.6291068,0.00033242,3]
[340866794,1729960241641,-216.003,0.0003328,50]
[340866795,1729960241650,-1212.35155892,0.00033464,3]
[340866796,1729960241660,-1212.33943322,0.000336,3]
[340866797,1729960241669,-1287.78533,0.00033655,2]
[340866798,1729960241678,-500.0,0.00034,5]
[340866799,1729960241688,-500.0,0.00034,5]
[340866800,1729960241697,-337.8517701,0.00034,5]
[340866840,1729960405271,160.966972,0.00013973,2]
[340866845,1729960934694,275.1903827,0.00013973,2]
[340866870,1729961431773,-155.2,0.000266,31]
[340866872,1729961431783,-3718.733365,0.00028224,2]
[340866875,1729961431793,-155.2,0.000287,31]
[340866877,1729961431803,-155.2,0.000287,31]
[340866879,1729961431813,-300.0,0.00028908,2]
[340866881,1729961431823,-300.0,0.00028908,2]
[340866883,1729961431833,-3718.733365,0.00028909,2]
[340866885,1729961431843,-3718.733365,0.00029594,2]
[340866887,1729961431852,-729.30217426,0.000296,2]
[340866889,1729961431865,-650.26151516,0.000296,2]
[340866893,1729961431877,-6126.62454683,0.000296,2]
[340866895,1729961431887,-1484.07810265,0.0002968,2]
[340866897,1729961431897,-631.30896501,0.00029681,2]
[340866899,1729961431906,-24900.0,0.00029681,2]
[340866901,1729961431916,-500.0,0.000297,5]
[340866903,1729961431925,-1048.75623136,0.00029997,2]
[340866988,1729961439807,-474.92395734,0.00029997,2]
[340866989,1729961439818,-269.0,0.0003,2]
[340866990,1729961439827,-2630.57604266,0.00030808,2]
[340866991,1729961439839,-369.42395734,0.00030808,2]
[340866992,1729961439849,-76.0654058,0.00030808,7]
[340866993,1729961439863,-74.9345942,0.00030808,7]
[340866994,1729961439873,-151.0,0.00030808,7]
[340866995,1729961439884,-151.0,0.00030808,7]
[340866996,1729961439895,-151.0,0.00030808,7]
[340866997,1729961439906,-5104.132,0.00031,30]
[340866998,1729961439917,-151.0,0.00031,7]
[340866999,1729961439930,-151.0,0.00031,7]
[340867000,1729961439940,-1000.0,0.0003107,5]
[340867001,1729961439951,-151.0,0.0003107,7]
[340867002,1729961439963,-223.106816,0.0003107,7]
[340867003,1729961439977,-197.814703,0.00031241,2]
[340867004,1729961439986,-265.392921,0.00031256,7]
[340867005,1729961439996,-265.392921,0.00031256,7]
[340867006,1729961440005,-151.0,0.00031256,7]
[340867007,1729961440015,-151.0,0.00031256,7]
[340867008,1729961440025,-151.0,0.00031256,7]
[340867009,1729961440035,-13341.1747442,0.00031256,2]
[340867010,1729961440044,-197.814703,0.00031326,2]
[340867011,1729961440056,-197.814703,0.00031412,2]
[340867012,1729961440069,-197.814703,0.00031498,2]
[340867013,1729961440079,-197.814703,0.00031583,2]
[340867014,1729961440089,-197.814703,0.00031669,2]
[340867015,1729961440099,-197.814703,0.00031755,2]
[340867016,1729961440110,-197.814703,0.00031841,2]
[340867017,1729961440121,-187.378196,0.000319,7]
[340867018,1729961440131,-265.392921,0.000319,7]
[340867019,1729961440141,-265.392921,0.000319,7]
[340867020,1729961440152,-197.814703,0.00031926,2]
[340867021,1729961440162,-7506.18823618,0.00031929,2]
[340867022,1729961440172,-195.53,0.00031986,2]
[340867023,1729961440182,-151.0,0.00031995,7]
[340867024,1729961440191,-151.0,0.00031995,7]
[340867025,1729961440201,-197.814703,0.00032012,2]
[340867026,1729961440211,-151.0,0.00032012,7]
[340867027,1729961440220,-197.814703,0.00032098,2]
[340867028,1729961440230,-197.814703,0.00032183,2]
[340867029,1729961440240,-3000.0,0.00032254,90]
[340867030,1729961440249,-1004.349071,0.00032254,90]
[340867031,1729961440258,-265.392921,0.00032254,7]
[340867032,1729961440268,-265.392921,0.00032254,7]
[340867033,1729961440277,-151.0,0.00032254,7]
[340867034,1729961440287,-151.0,0.00032254,7]
[340867035,1729961440297,-151.0,0.00032254,7]
[340867036,1729961440308,-197.814703,0.00032269,2]
[340867037,1729961440317,-197.814703,0.00032355,2]
[340867038,1729961440326,-1212.4243182,0.00032432,3]
[340867039,1729961440336,-197.814703,0.0003244,2]
[340867040,1729961440345,-197.814703,0.00032526,2]
[340867041,1729961440355,-197.814703,0.00032612,2]
[340867042,1729961440366,-197.814703,0.00032697,2]
[340867043,1729961440375,-197.814703,0.00032783,2]
[340867044,1729961440385,-151.0,0.000328,7]
[340867045,1729961440394,-197.814703,0.00032869,2]
[340867046,1729961440404,-265.392921,0.00032876,7]
[340867047,1729961440413,-265.392921,0.00032876,7]
[340867048,1729961440423,-1512.56704908,0.00032876,2]
[340867049,1729961440432,-151.0,0.00032876,7]
[340867050,1729961440441,-151.0,0.00032876,7]
[340867051,1729961440450,-151.0,0.00032876,7]
[340867052,1729961440459,-625.621601,0.00032877,120]
[340867053,1729961440469,-276.3813,0.00032939,14]
[340867054,1729961440478,-151.0,0.00032939,14]
[340867055,1729961440489,-151.0,0.00032939,14]
[340867056,1729961440499,-333.5304366,0.00033,2]
[340867057,1729961440508,-300.0,0.00033,3]
[340867058,1729961440517,-269.0,0.00033,2]
[340867059,1729961440526,-269.0,0.00033,2]
[340867060,1729961440536,-1026.02639557,0.00033073,5]
[340867061,1729961440545,-772.671198,0.00033155,2]
[340867062,1729961440554,-151.0,0.00033209,14]
[340867063,1729961440564,-151.0,0.00033209,14]
[340867064,1729961440573,-151.0,0.00033209,14]
[340867065,1729961440582,-265.392921,0.00033209,14]
[340867066,1729961440591,-265.392921,0.00033209,14]
[340867067,1729961440602,-151.0,0.00033209,14]
[340867068,1729961440612,-151.0,0.00033209,14]
[340867069,1729961440621,-151.0,0.00033209,14]
[340867070,1729961440630,-151.62910681,0.00033242,3]
[340867071,1729961440639,-151.0,0.00033377,14]
[340867072,1729961440648,-197.460942,0.00033624,14]
[340867073,1729961440657,-151.0,0.00033655,14]
[340867074,1729961440667,-772.671198,0.00033655,2]
[340867075,1729961440676,-265.392921,0.00033708,14]
[340867076,1729961440686,-265.392921,0.00033708,14]
[340867077,1729961440695,-265.392921,0.00033826,14]
[340867078,1729961440705,-265.392921,0.00033826,14]
[340867079,1729961440714,-151.0,0.00033826,14]
[340867080,1729961440723,-151.0,0.00033826,14]
[340867081,1729961440732,-151.0,0.00034118,14]
[340867082,1729961440741,-151.0,0.00034155,14]
[340867083,1729961440750,-772.671198,0.00034155,2]
[340867084,1729961440760,-7506.18823618,0.00034257,2]
[340867085,1729961440769,-1333.66675002,0.00034378,7]
[340867086,1729961440779,-185.12,0.0003445,2]
[340867087,1729961440788,-500.0,0.0003452,60]
[340867088,1729961440798,-153.0,0.00034521,2]
[340867089,1729961440807,-153.0,0.00034521,2]
[340867090,1729961440816,-153.0,0.00034521,2]
[340867091,1729961440826,-153.0,0.00034521,2]
[340867092,1729961440835,-153.0,0.00034521,2]
[340867093,1729961440844,-153.0,0.00034521,2]
[340867094,1729961440854,-1958.16658385,0.00034582,5]
[340867095,1729961440873,-265.392921,0.00034592,14]
[340867096,1729961440884,-265.392921,0.00034592,14]
[340867097,1729961440894,-151.0,0.00034592,14]
[340867098,1729961440904,-151.0,0.00034592,14]
[340867099,1729961440916,-151.0,0.00034592,14]
[340867100,1729961440926,-195.53,0.00034601,2]
[340867101,1729961440936,-1934.82,0.00034601,120]
[340867102,1729961440946,-9790.83291925,0.00034602,5]
[340867103,1729961440959,-151.0,0.00034602,14]
[340867104,1729961440971,-151.0,0.00034602,14]
[340867105,1729961440981,-265.392921,0.00034611,14]
[340867106,1729961440991,-265.392921,0.00034611,14]
[340867107,1729961441001,-151.0,0.00034611,14]
[340867108,1729961441011,-155.983287,0.00034611,14]
[340867109,1729961441022,-9790.83291925,0.00034612,5]
[340867110,1729961441034,-151.0,0.00034612,14]
[340867111,1729961441045,-232.961912,0.00034612,14]
[340867112,1729961441056,-265.392921,0.00034612,14]
[340867113,1729961441066,-265.392913,0.00034612,14]
[340867114,1729961441075,-151.0,0.00034612,14]
[340867115,1729961441086,-179.94705796,0.00034621,7]
[340867116,1729961441097,-304.07467242,0.00034621,7]
[340867117,1729961441108,-500.0,0.00034621,7]
[340867118,1729961441118,-527.74157469,0.00034621,7]
[340867119,1729961441129,-500.0,0.00034621,2]
[340867120,1729961441139,-140567.20160969,0.00034622,2]
[340867121,1729961441157,-433.430009,0.00034622,2]
[340867139,1729961442800,-14200.19368952,0.00034622,2]
[340867141,1729961442813,-1192.04,0.00034622,2]
[340867150,1729961445798,-68020.9612966,0.00034622,2]
[340867151,1729961445810,-219.465556,0.00034622,14]
[340867152,1729961445821,-151.0,0.00034622,14]
[340867153,1729961445832,-772.671198,0.00034655,2]
[340867154,1729961445842,-1000.0,0.0003471,2]
[340867155,1729961445854,-1015.31061676,0.00034724,2]
[340867156,1729961445865,-2046.31,0.0003473,120]
[340867157,1729961445876,-300.0,0.000348,10]
[340867158,1729961445887,-1000.0,0.000348,3]
[340867159,1729961445904,-1000.0,0.000348,3]
[340867160,1729961445914,-1000.0,0.000348,3]
[340867161,1729961445926,-77789.31718277,0.000348,10]
[340867162,1729961445951,-34884.46525265,0.000348,10]
[340867164,1729961501598,160.966972,0.00013973,2]
[340867175,1729962063753,178.372373,0.00013973,2]
[340867181,1729962625212,167.861102,0.00013973,2]
[340867202,1729962631909,-157.90656936,0.00024,120]
[340867203,1729962631919,-1563.039568,0.00025224,2]
[340867204,1729962631929,-300.0,0.00025603,2]
[340867205,1729962631938,-300.0,0.00025603,2]
[340867206,1729962631948,-559.82916305,0.00025604,2]
[340867207,1729962631957,-26415.72729596,0.00025604,2]
[340867216,1729962637987,-1346.5,0.00025604,2]
[340867217,1729962638097,-21582.45358024,0.00025604,2]
[340867218,1729962638109,-7437.466729,0.0002636,2]
[340867219,1729962638120,-7437.466729,0.00027045,2]
[340867220,1729962638131,-24900.0,0.0002722,2]
[340867221,1729962638142,-190.0,0.00027287,2]
[340867222,1729962638152,-420.0,0.00027719,2]
[340867223,1729962638162,-3810.60776527,0.0002772,4]
[340867224,1729962638172,-881.17496266,0.0002772,4]
[340867225,1729962638182,-7437.466729,0.0002773,2]
[340867226,1729962638191,-241.0,0.00027901,2]
[340867227,1729962638201,-420.0,0.00028163,2]
[340867228,1729962638211,-269.0,0.0003,2]
[340867229,1729962638222,-167.0,0.00030011,2]
[340867230,1729962638232,-500.0,0.0003075,5]
[340867231,1729962638243,-167.0,0.0003098,2]
[340867232,1729962638254,-187.75275,0.00031158,2]
[340867233,1729962638266,-416.38628456,0.00031233,5]
[340867234,1729962638275,-501.30052294,0.00031233,5]
[340867235,1729962638285,-3810.60776527,0.00032108,4]
[340867236,1729962638294,-881.17496266,0.00032108,4]
[340867237,1729962638305,-157.53776,0.00032118,7]
[340867238,1729962638315,-152.975398,0.00032118,7]
[340867239,1729962638324,-151.0,0.00032118,7]
[340867240,1729962638336,-151.0,0.00032118,7]
[340867241,1729962638345,-151.0,0.00032118,7]
[340867242,1729962638355,-151.0,0.00032118,7]
[340867243,1729962638365,-151.0,0.00032118,7]
[340867244,1729962638375,-151.0,0.00032118,7]
[340867245,1729962638385,-151.0,0.00032118,7]
[340867246,1729962638395,-151.0,0.00032118,7]
[340867247,1729962638406,-151.0,0.00032118,7]
[340867248,1729962638418,-151.0,0.00032118,7]
[340867249,1729962638427,-151.0,0.00032118,7]
[340867250,1729962638438,-151.0,0.00032118,7]
[340867251,1729962638450,-469.2162,0.00032877,120]
[340867252,1729962638460,-430.10509105,0.00032913,5]
[340867253,1729962638469,-500.0,0.00032913,5]
[340867254,1729962638478,-500.0,0.00032913,5]
[340867255,1729962638487,-500.0,0.00032913,5]
[340867256,1729962638497,-269.0,0.00033,2]
[340867257,1729962638506,-500.0,0.0003315,5]
[340867258,1729962638515,-500.0,0.0003315,2]
[340867259,1729962638524,-269.0,0.00033155,2]
[340867260,1729962638534,-772.671198,0.00033155,2]
[340867261,1729962638543,-151.6291068,0.00033242,3]
[340867262,1729962638552,-500.0,0.00033427,5]
[340867263,1729962638562,-500.0,0.00033625,5]
[340867264,1729962638571,-413.88,0.00034038,3]
[340867265,1729962638581,-3810.60776527,0.00034046,5]
[340867266,1729962638590,-881.17496266,0.00034046,5]
[340867267,1729962638599,-6185.17171783,0.00034048,2]
[340867268,1729962638608,-500.0,0.00034054,7]
[340867269,1729962638618,-500.0,0.00034054,7]
[340867270,1729962638628,-500.0,0.00034054,7]
[340867271,1729962638637,-500.0,0.00034054,7]
[340867272,1729962638647,-500.0,0.00034054,7]
[340867273,1729962638656,-500.0,0.00034054,7]
[340867274,1729962638665,-500.0,0.00034054,7]
[340867275,1729962638676,-500.0,0.00034054,7]
[340867276,1729962638685,-268.32834543,0.00034054,7]
[340867277,1729962638695,-500.0,0.00034054,7]
[340867278,1729962638704,-500.0,0.00034054,7]
[340867279,1729962638713,-500.0,0.00034054,7]
[340867280,1729962638723,-500.0,0.00034054,7]
[340867281,1729962638732,-343.40876268,0.00034054,7]
[340867282,1729962638742,-500.0,0.00034054,7]
[340867283,1729962638751,-500.0,0.00034054,7]
[340867284,1729962638760,-500.0,0.00034054,7]
[340867285,1729962638769,-416.33693893,0.00034054,7]
[340867286,1729962638779,-500.0,0.00034054,7]
[340867287,1729962638789,-500.0,0.00034054,7]
[340867288,1729962638798,-500.0,0.00034054,7]
[340867289,1729962638807,-500.0,0.00034054,7]
[340867290,1729962638816,-500.0,0.00034054,7]
[340867291,1729962638825,-500.0,0.00034054,7]
[340867292,1729962638834,-500.0,0.00034054,7]
[340867293,1729962638843,-500.0,0.00034054,7]
[340867294,1729962638853,-500.0,0.00034054,7]
[340867295,1729962638862,-500.0,0.00034054,7]
[340867296,1729962638872,-500.0,0.00034054,7]
[340867297,1729962638881,-500.0,0.00034054,7]
[340867298,1729962638891,-500.0,0.00034054,7]
[340867299,1729962638900,-306.18393645,0.00034054,7]
[340867300,1729962638910,-500.0,0.00034054,7]
[340867301,1729962638919,-500.0,0.00034054,7]
[340867302,1729962638929,-450.0,0.00034054,7]
[340867303,1729962638938,-500.0,0.00034054,7]
[340867304,1729962638947,-500.0,0.00034054,7]
[340867305,1729962638957,-500.0,0.00034054,7]
[340867306,1729962638966,-500.0,0.00034054,7]
[340867307,1729962638975,-500.0,0.00034054,7]
[340867308,1729962638984,-500.0,0.00034054,7]
[340867309,1729962638993,-500.0,0.00034054,7]
[340867310,1729962639003,-500.0,0.00034054,7]
[340867311,1729962639013,-500.0,0.00034054,7]
[340867312,1729962639022,-500.0,0.00034054,7]
[340867313,1729962639031,-500.0,0.00034054,7]
[340867314,1729962639040,-500.0,0.00034054,7]
[340867315,1729962639050,-500.0,0.00034054,7]
[340867316,1729962639059,-500.0,0.00034054,7]
[340867317,1729962639068,-151.0,0.00034055,14]
[340867318,1729962639078,-151.0,0.00034055,14]
[340867319,1729962639087,-151.0,0.00034055,14]
[340867320,1729962639097,-151.0,0.00034055,14]
[340867321,1729962639108,-155.298192,0.00034055,14]
[340867322,1729962639117,-151.0,0.00034055,14]
[340867323,1729962639127,-151.0,0.00034055,14]
[340867324,1729962639137,-151.0,0.00034055,14]
[340867325,1729962639146,-152.647872,0.00034055,14]
[340867326,1729962639157,-151.0,0.00034055,14]
[340867327,1729962639166,-1854.2,0.00034246,120]
[340867328,1729962639177,-306.0,0.00034247,2]
[340867329,1729962639187,-171.90217097,0.00034282,5]
[340867330,1729962639197,-1000.0,0.00034282,5]
[340867331,1729962639209,-1000.0,0.00034282,5]
[340867332,1729962639221,-500.0,0.00034458,5]
[340867333,1729962639232,-6185.17171783,0.00034491,2]
[340867334,1729962639242,-1000.0,0.0003452,5]
[340867335,1729962639252,-1000.0,0.0003452,2]
[340867336,1729962639265,-176.157,0.0003455,2]
[340867337,1729962639276,-500.0,0.00034591,2]
[340867338,1729962639287,-1131.0,0.000346,7]
[340867339,1729962639299,-3810.60776527,0.00034676,5]
[340867340,1729962639309,-881.17496266,0.00034676,5]
[340867341,1729962639319,-151.0,0.00034686,14]
[340867342,1729962639331,-151.0,0.00034686,14]
[340867343,1729962639341,-151.0,0.00034686,14]
[340867344,1729962639352,-151.0,0.00034686,14]
[340867345,1729962639362,-293.949495,0.00034686,14]
[340867346,1729962639372,-3810.60776527,0.00034687,5]
[340867347,1729962639381,-881.17496266,0.00034687,5]
[340867348,1729962639391,-151.0,0.00034696,14]
[340867349,1729962639401,-151.0,0.00034696,14]
[340867350,1729962639410,-151.0,0.00034696,14]
[340867351,1729962639420,-37845.61646532,0.00034697,2]
[340867352,1729962639432,-286.16286834,0.00034697,2]
[340867353,1729962639441,-151.0,0.00034697,14]
[340867354,1729962639452,-49.24109776,0.00034697,14]
[340867355,1729962639463,-101.75890224,0.00034697,14]
[340867356,1729962639472,-151.0,0.00034697,14]
[340867357,1729962639481,-151.0,0.00034697,14]
[340867358,1729962639491,-82.32109776,0.00034697,14]
[340867359,1729962639506,-68.67890224,0.00034697,14]
[340867360,1729962639516,-153.815385,0.00034697,14]
[340867361,1729962639526,-151.0,0.00034697,14]
[340867362,1729962639535,-151.0,0.00034697,14]
[340867363,1729962639544,-225.862378,0.00034697,14]
[340867364,1729962639553,-151.0,0.00034697,14]
[340867366,1729962639563,-472.44333476,0.000347,2]
[340867369,1729962639575,-527.55666524,0.000347,2]
[340867371,1729962639584,-1000.0,0.00034767,2]
[340867374,1729962639593,-386.42216534,0.000348,10]
[340867377,1729962639602,-155.24,0.000348,31]
[340867380,1729962639612,-155.24,0.000348,31]
[340867384,1729962639622,-155.24,0.000348,31]
[340867387,1729962639632,-155.24,0.000348,31]
[340867390,1729962639641,-155.24,0.000348,31]
[340867393,1729962639650,-155.24,0.000348,31]
[340867396,1729962639660,-95.09144788,0.000348,2]
[340867399,1729962639671,-904.90855212,0.000348,2]
[340867403,1729962639680,-2000.0,0.000348,2]
[340867407,1729962639689,-176.057,0.0003485,120]
[340867409,1729962639699,-430.0,0.0003487,120]
[340867411,1729962639708,-819.87444788,0.00034872,2]
[340867443,1729962640085,-180.12555212,0.00034872,2]
[340867444,1729962640095,-430.0,0.0003488,120]
[340867445,1729962640104,-3810.60776527,0.0003488,5]
[340867446,1729962640114,-881.17496266,0.0003488,5]
[340867447,1729962640124,-430.0,0.0003489,120]
[340867448,1729962640134,-150.5,0.0003489,120]
[340867449,1729962640143,-178.61771,0.0003489,14]
[340867450,1729962640152,-153.535912,0.0003489,14]
[340867451,1729962640162,-1000.0,0.00034897,2]
[340867452,1729962640171,-1333.69343056,0.00034908,7]
[340867453,1729962640180,-3810.60776527,0.00034935,5]
[340867454,1729962640190,-881.17496266,0.00034935,5]
[340867455,1729962640200,-11431.8232958,0.00034945,5]
[340867456,1729962640209,-2643.52488798,0.00034945,5]